Cogmind - Beta 16 @@@ ROGUE MODE // 2025.10.22 @ 00:44:29 Player: War__Prophet Result: Destroyed by Explosive Trap Performance ------------- Evolutions (1) 500 Regions Visited (2) 400 Robots Destroyed (25) 125 Value Destroyed (643) 643 Prototype IDs (0) 0 Alien Tech Used (0) 0 Bonus (0) 0 TOTAL SCORE: 1668 Bonus ------- None Cogmind --------- Core Integrity 0/400 Matter 300/300 Energy 98/100 System Corruption 0% Temperature Cool (1) Movement Core (750) Ox14 Location -9/Materials Parts ------- > --- POWER (1) -------- (None) > --- PROPULSION (4) --- (None) > --- UTILITY (2) ------ High-capacity Storage Unit Signal Interpreter > --- WEAPON (2) ------- Mace Mining Claw > --- INVENTORY (20) --- Deuterium Engine Deuterium Engine Deuterium Engine Light Nuclear Core Heat Sink Improved Heat Sink Large Storage Unit Huge Storage Unit High-capacity Matter Pod (200) High-capacity Matter Pod (200) Visual Processing Unit Weapon Shielding Reactive Plating Reactive Plating Reactive Plating Reactive Plating Mining Claw Mining Claw Peak State ------------ > --- POWER ------------ Deuterium Engine > --- PROPULSION ------- Wheel Wheel Compact Wheel > --- UTILITY ---------- Huge Storage Unit Signal Interpreter > --- WEAPON ----------- Mace Mining Claw > --- INVENTORY -------- Ion Engine Light Nuclear Core Aluminum Leg Heat Sink Improved Heat Sink Large Storage Unit High-capacity Storage Unit High-capacity Matter Pod High-capacity Matter Pod Visual Processing Unit Weapon Shielding Reactive Plating Reactive Plating Reactive Plating Reactive Plating Mining Claw Mining Claw [Rating: 14] Favorites ----------- Power Ion Engine Engine Ion Engine Power Core Light Nuclear Core Propulsion Wheel Leg Aluminum Leg Wheel Wheel Utility Signal Interpreter Device Terrain Scanner Storage Large Storage Unit Processor Signal Interpreter Weapon Mining Claw Energy Gun Medium Laser Ballistic Gun Light Assault Rifle Impact Weapon Mace Slashing Weapon Mining Claw Build | -11 -10 -9 ------- Run | Yrd Mat Mat Slots Evolved 2 | . . 2 Power . | . . . Propulsion 2 | . . 2 Utility . | . . . Weapon . | . . . Parts Attached 30 | 5 16 9 Power 5 | 1 1 3 Engine 4 | 1 1 2 Core 1 | . . 1 Reactor . | . . . Propulsion 11 | 2 5 4 Treads . | . . . Leg 5 | . 3 2 Wheel 6 | 2 2 2 Hover . | . . . Flight . | . . . Utility 8 | 1 6 1 Device 2 | . 2 . Storage 5 | 1 3 1 Processor 1 | . 1 . Hackware . | . . . Protection . | . . . Artifact . | . . . Weapon 6 | 1 4 1 Energy Gun 1 | . 1 . Energy Cannon . | . . . Ballistic Gun 2 | 1 1 . Ballistic Cannon . | . . . Launcher . | . . . Special Weapon . | . . . Impact Weapon 1 | . . 1 Slashing Weapon 2 | . 2 . Piercing Weapon . | . . . Special Melee Weapon . | . . . Unidentified Prototypes . | . . . Parts Lost 12 | . 3 9 Power 2 | . 1 1 Propulsion 8 | . . 8 Utility 1 | . 1 . Weapon 1 | . 1 . Highest Loss Streak 3 | . 2 3 To Critical Strikes . | . . . Average Backups 8 | . 5 13 Power 1 | . . 1 Propulsion 1 | . 2 . Utility 4 | . 2 9 Weapon . | . . 1 Tool/Special . | . . . Unused Backups 18 | . 4 14 Power 3 | . . 3 Propulsion 2 | . . 2 Utility 12 | . 4 8 Weapon 1 | . . 1 Tool/Special . | . . . Average Slot Usage (%) 89 | . 95 80 Engine 11 | . 13 7 Leg 12 | . 16 4 Wheel 15 | . 11 22 Device 7 | . 12 . Storage 12 | . 14 11 Processor 4 | . . 11 Ballistic Gun 6 | . 9 . Impact Weapon 2 | . . 6 Slashing Weapon 14 | . 14 15 Peak Build Rating 14 | 5 10 14 Average Rating 8 | 3 7 10 On Entrance 4 | . 5 8 Avg Prop Armor Cover (%) . | . . . Naked Turns . | . . . Heaviest Build 93 | 9 53 93 Greatest Support 46 | 20 20 46 Greatest Overweight (x) 30 | . 2 30 Average Overweight (x) 1 | . . 2 Largest Inventory Capacity 25 | 8 20 25 Average Capacity 17 | 6 14 23 Most Carried 19 | 1 11 19 Average Carried 8 | . 5 13 Final Capacity 20 | 8 20 20 Final Carried 18 | 1 10 18 Class Distribution -------------------- 100% | Mutant Dominant Class ---------------- Mutant | -10/Materials Mutant | -9/Materials Resources | -11 -10 -9 ----------- Run | Yrd Mat Mat Matter Collected 1010 | 230 567 213 Remotely . | . . . Salvage Created 856 | . 367 489 Parts 46 | . 25 21 Haulers Intercepted . | . . . Recyclers Shooed 2 | . 1 1 Parts Field Recycled . | . . . Retrieved Matter . | . . . Parts Self-Destructed . | . . . Prevented . | . . . Parts Restored . | . . . Kills | -11 -10 -9 ------- Run | Yrd Mat Mat Combat Hostiles Destroyed 17 | . 9 8 Melee 12 | . 5 7 Guns 4 | . 4 . Classes Destroyed 7 | . 4 3 Worker 5 | . 2 3 Builder 1 | . 1 . Recycler 1 | . . 1 Watcher 1 | . . 1 Swarmer 3 | . 3 . Grunt 11 | . 6 5 Sentry 3 | . . 3 Best Kill Streak 3 | . 3 2 Combat Bots Only 3 | . 3 1 Max Kills in Single Turn 1 | . 1 1 Gunslinging . | . . . Exploded . | . . . Melee 1 | . 1 1 Uniques/NPCs Destroyed . | . . . Combat | -11 -10 -9 -------- Run | Yrd Mat Mat Hostile Shots Fired 183 | . 68 115 Missed 43 | . 17 26 Hits 140 | . 51 89 Projectile 140 | . 51 89 Critical Strikes 4 | . 1 3 Damage Taken 1786 | . 666 1120 Core 568 | . 167 401 Absorbed by Shields . | . . . Core Remaining (%) 66 | 100 33 . Volleys Fired 40 | . 40 . Largest 2 | . 2 . Hottest 70 | . 70 . Shots Fired 56 | . 56 . Gun 56 | . 56 . Cannon . | . . . Launcher . | . . . Special . | . . . Kinetic 47 | . 47 . Thermal 9 | . 9 . Explosive . | . . . Electromagnetic . | . . . Robot Hit Streak 6 | . 6 . Robot Miss Streak 4 | . 4 . Penetration Max . | . . . Secondary Targets . | . . . Shots Hit Robots 86 | . 52 34 Core Hits 30 | . 21 9 Critical Kills . | . . . Critical Parts Destroyed 2 | . . 2 Critical Strikes 2 | . . 2 Smash 2 | . . 2 Melee Attacks 79 | . 28 51 Impact 22 | . . 22 Slashing 57 | . 28 29 Piercing . | . . . Sneak Attacks 11 | . 5 6 Combat Hostiles . | . . . Follow-up Attacks 8 | . 3 5 Damage Inflicted 1846 | . 813 1033 Guns 330 | . 330 . Cannons . | . . . Explosions . | . . . Melee 1516 | . 483 1033 Ramming . | . . . Kinetic 254 | . 254 . Thermal 76 | . 76 . Explosive . | . . . Electromagnetic . | . . . Impact 536 | . . 536 Slashing 980 | . 483 497 Piercing . | . . . Highest Corruption 2 | . 2 . Average Corruption 2 | . 2 . Corruption Purged . | . . . Corruption Blocked . | . . . Effects 2 | . 2 . Message Errors 1 | . 1 . Matter Fused 1 | . 1 . Overload Shots . | . . . Overflow Damage 239 | . 20 219 Projectiles . | . . . Explosions . | . . . Melee 239 | . 20 219 Knockbacks 2 | . . 2 Impact 2 | . . 2 Kinetic . | . . . Secondary . | . . . Self-Inflicted Damage . | . . . Shots . | . . . Rammed . | . . . Targets Rammed . | . . . Kicked . | . . . Crushed . | . . . Highest Temperature 167 | . 167 5 Average Temperature 49 | . 51 5 Received Heat Transfer 921 | . 357 564 Siege Activations . | . . . Martial Activations . | . . . Shielding Activations . | . . . Robots Disrupted . | . . . Combat Hostiles . | . . . Robots Corrupted 3 | . . 3 Combat Hostiles 1 | . . 1 Parts Fried 6 | . . 6 Impact Corruptions 9 | . . 9 Robots Melted . | . . . Combat Hostiles . | . . . Parts Melted 2 | . 2 . Heat Transferred 222 | . 222 . Parts Sabotaged . | . . . Parts Stolen . | . . . Parts Stripped . | . . . Power Chain Reactions . | . . . Alert | -11 -10 -9 ------- Run | Yrd Mat Mat Maximum Alert Level . | . . . Low Security (%) 100 | 100 100 100 Level 1 . | . . . Level 2 . | . . . Level 3 . | . . . Level 4 . | . . . Level 5 . | . . . High Security . | . . . Max Security . | . . . Peak Influence 65 | . 65 50 Initial 25 | . . 25 Average 12 | . 13 13 Influence Increases 533 | . 280 253 Destroy 0b10 Robot/C 340 | . 180 160 Destroy 0b10 Robot/NC 40 | . 15 25 Destroy Leader 92 | . 40 52 Disable Machine 30 | . 30 . Destroy Structure 1 | . . 1 Lose Combat Pursuer 30 | . 15 15 Influence Decreases 533 | . 219 314 Entered New Map 36 | . . 36 Time Decay 444 | . 219 225 Lost Part 53 | . . 53 Squads Dispatched 1 | . . 1 Investigation . | . . . Extermination . | . . . Reinforcement 1 | . . 1 Assault . | . . . Garrison . | . . . Intercept . | . . . Searches Triggered . | . . . Construction Impeded . | . . . Haulers Reinforced . | . . . Active Scanning Responses . | . . . Cargo Convoy Interrupts . | . . . Stealth | -11 -10 -9 --------- Run | Yrd Mat Mat Distress Signals 1 | . . 1 Communications Jammed . | . . . Distress Signals . | . . . Times Spotted 30 | . 18 12 Peak Tracking Total 4 | . 4 3 Tactical Retreats 2 | . 1 1 Traps | -11 -10 -9 ------- Run | Yrd Mat Mat Traps Triggered 2 | . 1 1 Indirectly . | . . . Trap Hack Attempts . | . . . Triggered . | . . . Disarmed . | . . . Reprogrammed . | . . . Reused . | . . . Traps Extracted . | . . . Installed . | . . . Triggered . | . . . Machines | -11 -10 -9 ---------- Run | Yrd Mat Mat Machines Disabled 2 | . 2 . Max in Single Turn 1 | . 1 . Machines Repaired . | . . . Machines Dismantled . | . . . Machines Sabotaged . | . . . Overloaded Fab Kills . | . . . Hacking | -11 -10 -9 --------- Run | Yrd Mat Mat Machines Accessed . | . . . Terminals . | . . . Fabricators . | . . . Repair Stations . | . . . Recycling Units . | . . . Scanalyzers . | . . . Garrison Access . | . . . Total Hacks . | . . . Successful . | . . . Failed . | . . . Catastrophic . | . . . Database Lockouts . | . . . Manual . | . . . Terminals . | . . . Fabricators . | . . . Repair Stations . | . . . Recycling Units . | . . . Scanalyzers . | . . . Garrison Access . | . . . Terminal Hacks . | . . . Fabricator Hacks . | . . . Repair Station Hacks . | . . . Recycling Unit Hacks . | . . . Scanalyzer . | . . . Garrison Access Hacks . | . . . Unauthorized Hacks . | . . . Terminals . | . . . Fabricators . | . . . Repair Stations . | . . . Recycling Units . | . . . Scanalyzers . | . . . Garrison Access . | . . . Data Cores Recovered . | . . . Used . | . . . Hacking Detections . | . . . Full Trace Events . | . . . Feedback Events . | . . . Feedback Blocked . | . . . Robot Schematics Acquired . | . . . Robots Built . | . . . Authchips . | . . . Time . | . . . Total Robot Build Rating . | . . . Part Schematics Acquired . | . . . Parts Built . | . . . Authchips . | . . . Time . | . . . Total Part Build Rating . | . . . Part Studies Acquired . | . . . Parts Repaired . | . . . Time . | . . . Parts Recycled . | . . . Recycled Matter . | . . . Retrieved Matter . | . . . Retrieved Components . | . . . Parts Scanalyzed . | . . . Part Schematics Acquired . | . . . Parts Damaged . | . . . Bothacking | -11 -10 -9 ------------ Run | Yrd Mat Mat Used RIF Installer . | . . . Robots Hacked . | . . . Non-combat . | . . . Combat . | . . . Robot Hacks Applied . | . . . Relay Couplers Released . | . . . Fabnet Peak Effective % . | . . . Robots Rewired . | . . . Allies Hacked . | . . . Hacks Repelled . | . . . Allies | -11 -10 -9 -------- Run | Yrd Mat Mat Total Allies . | . . . Largest Group . | . . . Highest-Rated Group . | . . . Highest-Rated Ally . | . . . Total Orders . | . . . Ally Attacks . | . . . Total Damage . | . . . Kills . | . . . Allies Corrupted . | . . . Allies Melted . | . . . Intel | -11 -10 -9 ------- Run | Yrd Mat Mat Active Infowar (turns) 627 | . 627 . Terrain 627 | . 627 . Robot Analysis Total . | . . . Derelict Logs Recovered . | . . . Drone Launches . | . . . Drone Recoveries . | . . . Exploration | -11 -10 -9 ------------- Run | Yrd Mat Mat Turns Passed 2054 | 58 1251 745 Spaces Moved 1121 | 63 765 293 Core 4 | 3 . 1 Treads . | . . . Legs 416 | . 362 54 Wheels 701 | 60 403 238 Hover . | . . . Flight . | . . . Fastest Speed 50 | 50 80 95 Average Speed 141 | 78 131 180 Slowest Speed 1550 | 80 190 1550 Overloaded Moves . | . . . Propulsion Burnouts . | . . . Robots Hopped . | . . . Potential Cave-ins . | . . . Cave-ins Triggered . | . . . Exploration Rate (%) 34 | 4 84 14 Regions Visited 2 Branch Regions . Pre-discovered Areas . | . . . Known Exits Taken 1 | . 1 . Unknown Exits Taken 1 | 1 . . Scrap Searched . | . . . Spaces Dug 1 | . . 1 Terrain Destroyed 1 | . . 1 Melee 1 | . . 1 Projectile . | . . . AOE . | . . . Terrain Rammed . | . . . Walls Destroyed . | . . . Machines Disabled . | . . . Actions | -11 -10 -9 --------- Run | Yrd Mat Mat Total 1410 | 68 917 425 Wait 93 | . 41 52 Move 1119 | 62 764 293 Hop . | . . . Pick Up 23 | 1 12 10 Fast Attach 16 | 5 7 4 Attach 12 | . 5 7 Detach 12 | . 7 5 Swap 11 | . 7 4 Drop 16 | . 12 4 Fire 40 | . 40 . Melee 68 | . 22 46 Ram . | . . . Kick . | . . . Crush . | . . . Escape Stasis . | . . . Rewire . | . . . Trap . | . . . Miscellaneous . | . . . Route ------- -11/Scrapyard -10/Materials (discovered 4 exits: *Mat x3 / [*Min]) -9/Materials (discovered 1 exit: [*Min]) History --------- Turn | Location | Event 9 | -11/Scrapyard | Discovered new exit (range 16) 59 | -11/Scrapyard | Entered Materials 112 | -10/Materials | Discovered new exit (range 5) 298 | -10/Materials | Discovered new exit (range 9) 300 | -10/Materials | Build established: Mutant 310 | -10/Materials | Discovered new exit (range 16) 592 | -10/Materials | Discovered new exit (range 3) 890 | -10/Materials | Core integrity fell below 50% 1310 | -10/Materials | Identified exit to Materials 1310 | -10/Materials | Entered another Materials area 1310 | -9/Materials | Evolved 2 slots: Propulsion x2 1692 | -9/Materials | Discovered new exit (range 11) 1733 | -9/Materials | Core integrity fell below 50% 1769 | -9/Materials | Lost 3 parts (3n) 1796 | -9/Materials | Core integrity fell below 20% 2055 | -9/Materials | Destroyed by Explosive Trap Last Messages --------------- 01880_ Sneak attack on K-01 Serf. 01880_ Destroyed Wheel. 01880_ K-01 Serf system corrupted by crushing effect. 01883_ K-01 Serf collects debris. 01888_ Acquired 1 matter. 01891_ K-01 Serf collects debris. 01902_ Sneak attack on K-01 Serf. 01902_ Destroyed Wheel. 01902_ Destroyed Lgt. Ion Engine. 01902_ K-01 Serf system corrupted by crushing effect. 01902_ K-01 Serf knocked back. 01903_ K-01 Serf system terminally corrupted. 01903_ Wheel fried. 01903_ Med. Matter Pod fried. 01928_ K-01 Serf collects debris. 01943_ Dropped Deuterium Engine. 02055_ Triggered Explosive Trap. 02055_ An explosion rips through the floor. 02055_ Aluminum Leg destroyed. Map ----- +----------------------------------------------------+ | ???? ???????????????????????????????????? "???? | | ???? ???????????????????????????????????? "???? | | ???? ???????????????????????????????????? ""??? | | ???? ???????????????????????????????????# ??? | | ???? ???????????????????????????????????# ??? | | ???? ######?????????????????????????????# """?? | | ???# # #?????????????????????????????# ""??? | | ???# # |! #?????????????????????????????# "???? | | ???# # !! #?????????????????????????????+ ???? | | ???# # !! #??????? ?????????????????????# ????? | | ???# # #???##? ?????????????????????# #????? | | ???# #%! ## # ??????????????????????# #????? | | ???# # + + ???????????????????????# #????? | | ???# # #??? #????????????????????????# #????? | | #### "% #?? #????????????????????????# #????? | | %##+#### #????????????############# #????? | | [* #?############ = #????? | | % #?#% """"" # ######## = #????? | | #??# ""T"" # #??????# #????? | | ##+########??# # #??????# #????? | | # ###% """ #????# ! # #??????# #????? | | # #?# """ ##########+##### #??????# ######????? | | # #?# """ +%% #???# #???? # #?????????? | | # #?# ## #???# #??"" # #?????????? | | # #?# ## ##### # # #?????????? | | ?#[ ## ^ @ [ o # #?????????? | | ######### ^ ######## #???####### | | #???????# "" ^ # # ##### | | < #???????# "T # + =!= | | #???????# ""^ ^ !!=# " #######+##### | | " ""#???????# !!=# T ## ! [ | | "|||"?????????# !!=# " ## | | #"""??????????# # ## | | ??????????????# ######### | | ??????????????##"""T"""########???????# | | ???????????????#########??????????????############ | | | | | | | | | | | | | | | | | | | | | | | | | | | | | +----------------------------------------------------+ Best States ------------- Heat Dissipation 39 Energy Generation 14 Energy Capacity 275 Matter Stores 300 Matter Capacity 300 Sight Range 16 Terrain Scan Range 14 Terrain Scan Density 10 Evasion (%) 55 Item Schematics ----------------- None Robot Schematics ------------------ None Fabricated ------------ Nothing Repaired ---------- Nothing Studied --------- None Alien Tech Used ----------------- None Achievements -------------- DATA ERROR: Steam Global Achievement% Organ Harvest Overwhelming Challenges ------------ None Game ------ Seed BattleAntigravPurifier Manual? 0 Play Time 00:12:51 Cumulative 38.5 hours Start 2025.10.22 @ 00:30:15 End 2025.10.22 @ 00:44:29 Sessions 1 Manual Loads 0 Difficulty Rogue Special Mode None Game No. 155 Rogue 155 Adventurer 0 Explorer 0 Win Type - Total 0 Types 0/0/0/0/0/0/0/0/0/0 Lore% 12 Gallery% 32 Achievement% 17 Wizard Run 0 Options --------- Layout 1 ASCII 0 Keyboard 1 Movement Vi Keybinds 0 Fullscreen 1 Font 16/SmallcapsGlow Map View 55x38 Zoom Use 0% Tactical HUD 1 Map Filters NONE Filters NONE Steam 1 RUN: 9690db71-daea-4f38-bf0c-dc8310ed4b04